Cogmind - Beta 16.1 @@@ ROGUE MODE // 2026.03.12 @ 21:58:13 Player: lone_cultivator Result: Destroyed by D-53 Grenadier with Mini Grenade Launcher Performance ------------- Evolutions (0) 0 Regions Visited (2) 400 Robots Destroyed (36) 180 Value Destroyed (732) 732 Prototype IDs (2) 40 Alien Tech Used (0) 0 Bonus (0) 0 TOTAL SCORE: 1352 Bonus ------- None Cogmind --------- Core Integrity 0/250 Matter 292/300 Energy 249/250 System Corruption 0% Temperature Cool (0) Movement Core (500) Ox9 Location -10/Mines Parts ------- > --- POWER (1) -------- Ion Engine > --- PROPULSION (2) --- (None) > --- UTILITY (2) ------ Large Storage Unit Signal Interpreter > --- WEAPON (2) ------- Heavy Assault Rifle > --- INVENTORY (15) --- Aluminum Leg Large Storage Unit High-capacity Battery (250) High-capacity Matter Pod (200) Sensor Array Improved Terrain Scanner Light Armor Plating Beam Rifle Heavy Assault Rifle Light Cannon Grenade Launcher Grenade Launcher Datajack Mining Laser Peak State ------------ > --- POWER ------------ Light Nuclear Core > --- PROPULSION ------- Aluminum Leg Aluminum Leg > --- UTILITY ---------- Small Storage Unit Terrain Scanner > --- WEAPON ----------- Medium Laser Medium Laser > --- INVENTORY -------- Light Ion Engine Aluminum Leg Improved Heat Sink Huge Storage Unit High-capacity Matter Pod Sensor Array Power Shielding Medium Laser [Rating: 10] Favorites ----------- Power Light Nuclear Core Engine Light Ion Engine Power Core Light Nuclear Core Propulsion Aluminum Leg Leg Aluminum Leg Utility Terrain Scanner Device Terrain Scanner Storage Large Storage Unit Processor Signal Interpreter Weapon Medium Laser Energy Gun Medium Laser Energy Cannon Beam Cannon Ballistic Gun Light Assault Rifle Ballistic Cannon Light Cannon Launcher Grenade Launcher Special Weapon Mining Laser Special Melee Weapon Datajack Build | -11 -10 -10 ------- Run | Yrd Mat Min Slots Evolved . | . . . Power . | . . . Propulsion . | . . . Utility . | . . . Weapon . | . . . Parts Attached 40 | 7 28 5 Power 5 | 1 3 1 Engine 4 | 1 2 1 Core 1 | . 1 . Reactor . | . . . Propulsion 11 | 2 7 2 Treads . | . . . Leg 11 | 2 7 2 Wheel . | . . . Hover . | . . . Flight . | . . . Utility 7 | 1 6 . Device 3 | . 3 . Storage 3 | 1 2 . Processor 1 | . 1 . Hackware . | . . . Protection . | . . . Artifact . | . . . Weapon 17 | 3 12 2 Energy Gun 7 | 2 5 . Energy Cannon 2 | . 1 1 Ballistic Gun 2 | 1 . 1 Ballistic Cannon 1 | . 1 . Launcher 2 | . 2 . Special Weapon 2 | . 2 . Impact Weapon . | . . . Slashing Weapon . | . . . Piercing Weapon . | . . . Special Melee Weapon 1 | . 1 . Unidentified Prototypes . | . . . Parts Lost 7 | . 3 4 Power . | . . . Propulsion 3 | . . 3 Utility 1 | . 1 . Weapon 3 | . 2 1 Highest Loss Streak 4 | . 2 4 To Critical Strikes . | . . . Average Backups 10 | 1 10 14 Power . | . 1 . Propulsion 1 | . 1 2 Utility 2 | . 2 4 Weapon 4 | . 4 6 Tool/Special . | . . . Unused Backups 12 | . 3 9 Power . | . . . Propulsion . | . . . Utility 8 | . 2 6 Weapon 4 | . 1 3 Tool/Special . | . . . Average Slot Usage (%) 97 | . 97 100 Engine 4 | . 3 7 Core 9 | . 10 6 Leg 28 | . 28 28 Device 8 | . 11 . Storage 14 | . 14 14 Processor 3 | . . 14 Energy Gun 10 | . 12 1 Energy Cannon 5 | . 3 14 Ballistic Gun 4 | . 3 6 Ballistic Cannon 2 | . 3 . Launcher 2 | . 1 5 Special Weapon 1 | . 2 1 Peak Build Rating 10 | 6 10 10 Average Rating 8 | 5 8 9 On Entrance 5 | . 6 10 Avg Prop Armor Cover (%) . | . . . Naked Turns . | . . . Heaviest Build 32 | 12 32 31 Greatest Support 20 | 20 20 20 Greatest Overweight (x) 3 | 3 1 1 Average Overweight (x) . | . . 1 Largest Inventory Capacity 25 | 8 25 15 Average Capacity 11 | 7 11 15 Most Carried 15 | 4 15 15 Average Carried 10 | 1 10 14 Final Capacity 15 | 8 15 15 Final Carried 15 | 2 15 14 Class Distribution -------------------- 89% | Mutant 10% | Scavenger-Mutant Dominant Class ---------------- Mutant | -10/Materials Scavenger-Mutant | -10/Mines Resources | -11 -10 -10 ----------- Run | Yrd Mat Min Matter Collected 1041 | 241 629 171 Remotely . | . . . Salvage Created 1100 | . 729 371 Parts 72 | . 39 33 Haulers Intercepted . | . . . Recyclers Shooed 2 | . 2 . Parts Field Recycled . | . . . Retrieved Matter . | . . . Parts Self-Destructed . | . . . Prevented . | . . . Parts Restored . | . . . Kills | -11 -10 -10 ------- Run | Yrd Mat Min Combat Hostiles Destroyed 25 | . 17 8 Guns 12 | . 10 2 Cannons 7 | . 4 3 AOE 4 | . 1 3 Classes Destroyed 7 | . 5 2 Worker 5 | . 3 2 Tunneler 1 | . . 1 Recycler 3 | . 1 2 Watcher 2 | . 2 . Swarmer 12 | . 6 6 Grunt 11 | . 11 . Sentry 2 | . . 2 Best Kill Streak 7 | . 4 7 Combat Bots Only 3 | . 3 3 Max Kills in Single Turn 2 | . 2 2 Gunslinging . | . . . Exploded 2 | . 1 2 Melee . | . . . Uniques/NPCs Destroyed . | . . . Combat | -11 -10 -10 -------- Run | Yrd Mat Min Hostile Shots Fired 153 | . 108 45 Missed 36 | . 26 10 Hits 117 | . 82 35 Projectile 117 | . 82 35 AOE 11 | . 1 10 Critical Strikes 2 | . 2 . Damage Taken 1555 | . 893 662 Core 253 | . 145 108 Absorbed by Shields . | . . . Core Remaining (%) 100 | 100 . . Volleys Fired 112 | 1 89 22 Largest 2 | 2 2 2 Hottest 150 | 70 150 100 Shots Fired 191 | 2 156 33 Gun 134 | 2 122 10 Cannon 38 | . 18 20 Launcher 3 | . . 3 Special 16 | . 16 . Kinetic 50 | 1 40 9 Thermal 124 | 1 102 21 Explosive 3 | . . 3 Electromagnetic 14 | . 14 . Robot Hit Streak 6 | . 6 6 Robot Miss Streak 5 | . 5 3 Penetration Max . | . . . Secondary Targets . | . . . Shots Hit Robots 100 | . 83 17 Core Hits 48 | . 31 17 Critical Kills 1 | . 1 . Critical Parts Destroyed 1 | . 1 . Critical Strikes 10 | . 10 . Burn 8 | . 8 . Meltdown 1 | . 1 . Destroy 1 | . 1 . Melee Attacks 11 | . 11 . Impact . | . . . Slashing . | . . . Piercing . | . . . Sneak Attacks 8 | . 8 . Combat Hostiles . | . . . Follow-up Attacks . | . . . Damage Inflicted 1469 | . 1009 460 Guns 860 | . 752 108 Cannons 380 | . 224 156 Explosions 229 | . 33 196 Melee . | . . . Ramming . | . . . Kinetic 306 | . 208 98 Thermal 878 | . 712 166 Explosive 196 | . . 196 Electromagnetic 89 | . 89 . Impact . | . . . Slashing . | . . . Piercing . | . . . Highest Corruption . | . . . Average Corruption . | . . . Corruption Purged . | . . . Corruption Blocked . | . . . Overload Shots . | . . . Overflow Damage 1 | . 1 . Projectiles . | . . . Explosions 1 | . 1 . Melee . | . . . Knockbacks . | . . . Impact . | . . . Kinetic . | . . . Secondary . | . . . Self-Inflicted Damage 21 | . 21 . Shots 1 | . 1 . Rammed . | . . . Targets Rammed . | . . . Kicked . | . . . Crushed . | . . . Highest Temperature 354 | 30 354 132 Average Temperature 87 | 18 93 56 Received Heat Transfer 384 | . 339 45 Effects 2 | . 2 . Interference 2 | . 2 . Siege Activations . | . . . Martial Activations . | . . . Shielding Activations . | . . . Robots Disrupted . | . . . Combat Hostiles . | . . . Robots Corrupted . | . . . Combat Hostiles . | . . . Parts Fried . | . . . Impact Corruptions . | . . . Robots Melted 2 | . 2 . Combat Hostiles 2 | . 2 . Parts Melted 7 | . 6 1 Heat Transferred 2837 | . 2479 358 Parts Sabotaged . | . . . Parts Stolen . | . . . Parts Stripped . | . . . Power Chain Reactions 1 | . 1 . Alert | -11 -10 -10 ------- Run | Yrd Mat Min Maximum Alert Level . | . . . Low Security (%) 100 | 100 100 100 Level 1 . | . . . Level 2 . | . . . Level 3 . | . . . Level 4 . | . . . Level 5 . | . . . High Security . | . . . Max Security . | . . . Peak Influence 162 | . 162 122 Initial 46 | . . 46 Average 56 | . 64 52 Influence Increases 847 | . 556 291 Destroy 0b10 Robot/C 500 | . 340 160 Destroy 0b10 Robot/NC 55 | . 30 25 Destroy Leader 94 | . 74 20 Successful Hack 23 | . 23 . Disable Machine 90 | . 30 60 Destroy Structure 40 | . 14 26 Lose Combat Pursuer 45 | . 45 . Influence Decreases 781 | . 435 346 Entered New Map 75 | . . 75 Time Decay 636 | . 405 231 Lost Part 70 | . 30 40 Squads Dispatched 4 | . 4 . Investigation 3 | . 3 . Extermination . | . . . Reinforcement 1 | . 1 . Assault . | . . . Garrison . | . . . Intercept . | . . . Searches Triggered . | . . . Construction Impeded . | . . . Haulers Reinforced . | . . . Active Scanning Responses . | . . . Cargo Convoy Interrupts . | . . . Stealth | -11 -10 -10 --------- Run | Yrd Mat Min Distress Signals 4 | . 4 . Communications Jammed . | . . . Distress Signals . | . . . Times Spotted 43 | . 32 11 Peak Tracking Total 7 | . 7 3 Tactical Retreats 2 | . 2 . Traps | -11 -10 -10 ------- Run | Yrd Mat Min Traps Triggered 3 | . 3 . Indirectly . | . . . Trap Hack Attempts . | . . . Triggered . | . . . Disarmed . | . . . Reprogrammed . | . . . Reused . | . . . Traps Extracted . | . . . Installed . | . . . Triggered . | . . . Machines | -11 -10 -10 ---------- Run | Yrd Mat Min Machines Disabled 7 | . 2 5 Max in Single Turn 2 | . 1 2 Machines Repaired . | . . . Machines Dismantled . | . . . Machines Sabotaged . | . . . Overloaded Fab Kills . | . . . Hacking | -11 -10 -10 --------- Run | Yrd Mat Min Machines Accessed 8 | . 8 . Terminals 6 | . 6 . Fabricators . | . . . Repair Stations . | . . . Recycling Units 2 | . 2 . Scanalyzers . | . . . Garrison Access . | . . . Total Hacks 23 | . 23 . Successful 16 | . 16 . Failed 7 | . 7 . Catastrophic 1 | . 1 . Database Lockouts . | . . . Manual 2 | . 2 . Terminals 19 | . 19 . Fabricators . | . . . Repair Stations . | . . . Recycling Units 4 | . 4 . Scanalyzers . | . . . Garrison Access . | . . . Terminal Hacks 13 | . 13 . Record 4 | . 4 . Prototype ID Bank 1 | . 1 . Branch Access Points 1 | . 1 . Recycling Unit Index 1 | . 1 . Alert Level 2 | . 2 . Dispatch Records 1 | . 1 . Maintenance Status 1 | . 1 . Reinforcement Status 1 | . 1 . Hauler Manifests 1 | . 1 . Fabricator Hacks . | . . . Repair Station Hacks . | . . . Recycling Unit Hacks 3 | . 3 . Report Inventory 2 | . 2 . Retrieve Components 1 | . 1 . Scanalyzer . | . . . Garrison Access Hacks . | . . . Unauthorized Hacks . | . . . Terminals . | . . . Fabricators . | . . . Repair Stations . | . . . Recycling Units . | . . . Scanalyzers . | . . . Garrison Access . | . . . Data Cores Recovered . | . . . Used . | . . . Hacking Detections 4 | . 4 . Full Trace Events . | . . . Feedback Events . | . . . Feedback Blocked . | . . . Robot Schematics Acquired . | . . . Robots Built . | . . . Authchips . | . . . Time . | . . . Total Robot Build Rating . | . . . Part Schematics Acquired . | . . . Parts Built . | . . . Authchips . | . . . Time . | . . . Total Part Build Rating . | . . . Part Studies Acquired . | . . . Parts Repaired . | . . . Time . | . . . Parts Recycled . | . . . Recycled Matter . | . . . Retrieved Matter . | . . . Retrieved Components 7 | . 7 . Parts Scanalyzed . | . . . Part Schematics Acquired . | . . . Parts Damaged . | . . . Bothacking | -11 -10 -10 ------------ Run | Yrd Mat Min Used RIF Installer . | . . . Robots Hacked 3 | . 3 . Non-combat 3 | . 3 . Combat . | . . . Robot Hacks Applied 4 | . 4 . parse_system 2 | . 2 . no_distress 2 | . 2 . Relay Couplers Released . | . . . Fabnet Peak Effective % . | . . . Robots Rewired . | . . . Allies Hacked . | . . . Hacks Repelled . | . . . Allies | -11 -10 -10 -------- Run | Yrd Mat Min Total Allies . | . . . Largest Group . | . . . Highest-Rated Group . | . . . Highest-Rated Ally . | . . . Total Orders . | . . . Ally Attacks . | . . . Total Damage . | . . . Kills . | . . . Allies Corrupted . | . . . Allies Melted . | . . . Intel | -11 -10 -10 ------- Run | Yrd Mat Min Active Infowar (turns) 1754 | . 1754 . Sensors 4 | . 4 . Terrain 1750 | . 1750 . Robot Analysis Total . | . . . Derelict Logs Recovered 2 | . . 2 Drone Launches . | . . . Drone Recoveries . | . . . Exploration | -11 -10 -10 ------------- Run | Yrd Mat Min Turns Passed 3106 | 306 2244 556 Spaces Moved 1557 | 123 1183 251 Core 15 | 15 . . Treads . | . . . Legs 1542 | 108 1183 251 Wheels . | . . . Hover . | . . . Flight . | . . . Fastest Speed 50 | 50 120 190 Average Speed 154 | 120 150 190 Slowest Speed 200 | 200 190 190 Overloaded Moves . | . . . Propulsion Burnouts . | . . . Robots Hopped . | . . . Potential Cave-ins . | . . . Cave-ins Triggered . | . . . Exploration Rate (%) 54 | 7 99 57 Regions Visited 2 Branch Regions 1 Pre-discovered Areas 1 | . . 1 Known Exits Taken 1 | . 1 . Unknown Exits Taken 1 | 1 . . Scrap Searched 2 | . . 2 Spaces Dug 14 | . 14 . Terrain Destroyed 41 | . 16 25 Melee . | . . . Projectile 14 | . 14 . AOE 27 | . 2 25 Terrain Rammed . | . . . Walls Destroyed . | . . . Machines Disabled . | . . . Actions | -11 -10 -10 --------- Run | Yrd Mat Min Total 2039 | 279 1462 298 Wait 232 | 141 84 7 Move 1555 | 122 1182 251 Hop . | . . . Pick Up 45 | 8 33 4 Fast Attach 2 | . 1 1 Attach 12 | 6 5 1 Detach . | . . . Swap 42 | 1 35 6 Drop 28 | . 22 6 Fire 112 | 1 89 22 Melee 11 | . 11 . Ram . | . . . Kick . | . . . Crush . | . . . Escape Stasis . | . . . Rewire . | . . . Trap . | . . . Miscellaneous . | . . . Route ------- -11/Scrapyard -10/Materials (discovered 5 exits: *Mat x3 / *Min / [*Sub]) -10/Mines (discovered 2 exits: *Mat x2) History --------- Turn | Location | Event 20 | -11/Scrapyard | Discovered new exit (range 14) 307 | -11/Scrapyard | Entered Materials 308 | -10/Materials | Build established: Mutant 453 | -10/Materials | Discovered new exit (range 14) 498 | -10/Materials | Discovered new exit (range 8) 1366 | -10/Materials | Discovered new exit (range 16) 1968 | -10/Materials | Discovered new exit (range 10) 2100 | -10/Materials | Core integrity fell below 50% 2180 | -10/Materials | Identified exit to Mines 2551 | -10/Materials | Entered Mines 2553 | -10/Mines | Discovered new exit (range 14) 2589 | -10/Mines | Discovered new exit (range 13) 2643 | -10/Mines | Identified exit to Materials 3003 | -10/Mines | Learned location of Storage (-9) 3025 | -10/Mines | Assembled infested the area 3105 | -10/Mines | Core integrity fell below 20% 3107 | -10/Mines | Destroyed by D-53 Grenadier with Mini Grenade Launcher Last Messages --------------- dispatching Demolisher response squad. 03025_ K-01 Serf collects debris. 03050_ S-10 Pest destroyed. 03050_ Seismic Survey Station disabled. 03056_ S-10 Pest destroyed. 03059_ Seismic Survey Station disabled. 03062_ S-10 Pest destroyed. 03065_ Acquired 15 matter. 03068_ K-01 Serf collects debris. 03078_ K-01 Serf cleans the Seismic Survey Station. 03082_ K-01 Serf collects debris. 03098_ C-45 Heavy ARC bursts open, deploying its payload. 03098_ D-53 Grenadier unfolds itself. 03098_ Seismic Survey Station disabled. 03098_ K-01 Serf destroyed. 03102_ Aluminum Leg destroyed. 03104_ Beam Cannon destroyed. 03106_ Aluminum Leg destroyed. Map ----- +----------------------------------------------------+ | | | | | | | ??????????????????????????????????????????? | | ????????????????????????????????????###???? | | ???????????????????????????????????## #### | | ??????????????????????????????????## | | ?????????????????????????????????## | | ?????????????????????????????????# | | ?????????????????????????????????# | | ?????????????????????????????????## | | ??????????????????????????????????## | | ???????????????????????????????????## ## | | ????????????????????????????????????### ### | | ?????????????###########??????????????# #?# | | ?????????????# #??????????????# #?# | | ?????????????# """ """ #??????????????# #?# | | ?????????????# """ """ #???########???# #?# | | ?????????????# """ "" #???# #???# ## | | ?????????????# [= #???# #### #???# ## | | ?????????????# "" " #??## #??# ##### ## | | ?????????????# #?## #### | | ?????????????# #?# ########### | | ?????????????# #?# #????????# | | ?????????????# #?# #???????? | | ?????????????# @ ### #???????? | | ?????????????# ## ##### | | ?????????????# # | | ?????????????## ## | | ???????# ##### ### ? | | ???????# d% ### ? | | ????????????# ## ? | | ???????????????#### d ## ? | | ??????????????????## #### #? ?? | | ????????????????????##??# #?? ?? | | ????????????????????????## ##?? ####??? | | ?????????????????????????######????##?????? | | ??????????????????????????????????????????? | | ??????????????????????????????????????????? | | ??????????????????????????????????????????? | | ?????????????????????????????????????????## | | ????????????????????????????????????????## | | ????????????????????????????????????????# | | ????????????????????????????????????????## | | ?????????????????????????????????????????## | | ??????????????????????????????????????????? | | ??????????????????????????????????????????? | | ??????????????????????????????????????????? | | ??????????????????????????????????????????? | | ??????????????????????????????????????????? | +----------------------------------------------------+ Best States ------------- Heat Dissipation 25 Energy Generation 14 Energy Capacity 250 Matter Stores 300 Matter Capacity 300 Sight Range 16 Terrain Scan Range 14 Terrain Scan Density 10 Evasion (%) 55 Item Schematics ----------------- None Robot Schematics ------------------ None Fabricated ------------ Nothing Repaired ---------- Nothing Studied --------- None Alien Tech Used ----------------- None Achievements -------------- Junior Dev Challenges ------------ None Game ------ Seed ScrapGaussSaw Manual? 0 Play Time 00:49:26 Cumulative 11.4 hours Start 2026.03.12 @ 21:03:52 End 2026.03.12 @ 21:58:13 Sessions 1 Manual Loads 0 Difficulty Rogue Special Mode None Game No. 5 Rogue 5 Adventurer 0 Explorer 0 Win Type - Total 0 Types 0/0/0/0/0/0/0/0/0/0 Lore% 3 Gallery% 10 Achievement% 11 Wizard Run 0 Options --------- Layout 1 ASCII 0 Keyboard 0 Movement Mouse Keybinds 0 Fullscreen 2 Font 48/Smallcaps Map View 50x35 Zoom Use 0% Tactical HUD 1 Map Filters NONE Filters NONE Steam 1 RUN: 6325a86d-0f88-4e1d-b061-331868f830a9